bitfinex/quotes_ETHUSD_20241129
["timestamp","ask_amount","ask_price","bid_price","bid_amount"]
[1732871172257,0.26156327,3571.8,3571.5,0.55]
[1732871172454,0.26156327,3571.7,3571.3,0.55]
[1732871172738,0.26156327,3571.9,3571.5,0.55]
[1732871172899,0.26156327,3571.8,3571.4,0.55]
[1732871173110,0.26156327,3571.7,3571.4,0.55]
[1732871173306,0.26156327,3571.9,3571.4,0.55]
[1732871173635,0.26156327,3571.8,3571.2,0.55]
[1732871173938,0.26156327,3571.7,3571.4,0.55]
[1732871174236,0.26156327,3571.6,3571.4,0.55]
[1732871174436,0.26156327,3571.8,3571.4,0.55]
[1732871174636,0.26156327,3571.7,3571.4,0.55]
[1732871174831,0.26156327,3571.8,3571.4,0.55]
[1732871175152,0.26156327,3571.7,3571.4,1.0020525]
[1732871175342,0.26156327,3571.6,3571.4,1.0020525]
[1732871175501,0.26156327,3571.8,3571.4,1.0020525]
[1732871175705,0.26156327,3571.7,3571.4,1.0020525]
[1732871175902,0.26156327,3571.6,3571.4,1.0020525]
[1732871176133,0.26181863,3571.7,3571.4,1.0020525]
[1732871176460,0.26181863,3571.6,3571.4,1.0020525]
[1732871176659,0.26181863,3571.5,3571.4,1.0020525]
[1732871176831,0.26181863,3571.7,3571.4,1.0020525]
[1732871177031,0.26181863,3571.6,3571.4,1.0020525]
[1732871177216,0.26181863,3571.5,3571.4,1.0020525]
[1732871177417,0.26181863,3571.7,3571.4,1.0020525]
[1732871177646,0.26181863,3571.6,3571.4,1.0020525]
[1732871177852,0.26181863,3571.5,3571.4,1.0020525]
[1732871178067,0.26181863,3571.7,3571.5,0.07224084]
[1732871178232,0.26181863,3571.6,3571.4,1.07433622]
[1732871178433,0.26181863,3571.5,3571.4,1.0020525]
[1732871178777,0.26181863,3571.7,3571.4,1.0020525]
[1732871178952,0.26181863,3571.6,3571.4,1.0020525]
[1732871179156,0.26181863,3571.5,3571.4,1.0020525]
[1732871179462,0.26181863,3571.7,3571.4,1.0020525]
[1732871179660,0.26195949,3571.6,3571.4,1.0020525]
[1732871179860,0.26195949,3571.5,3571.4,1.0020525]
[1732871180198,0.26195949,3571.7,3571.4,1.0020525]
[1732871180368,0.26195949,3571.6,3571.4,1.0020525]
[1732871180529,2.79963,3571.9,3571.6,0.55]
[1732871180862,0.26196334,3571.8,3571.6,0.55]
[1732871181063,0.26196334,3571.7,3571.4,0.55]
[1732871181250,0.26196334,3571.6,3571.4,0.55]
[1732871181455,0.26196334,3571.6,3571.3,2.80008]
[1732871181456,0.7816,3572.1,3571.6,0.7801]
[1732871181760,0.26196375,3572.0,3571.7,0.55]
[1732871182061,0.26196375,3571.9,3571.7,0.55]
[1732871182259,0.26196375,3571.8,3571.7,0.55]
[1732871182463,0.26196375,3572.2,3571.7,0.55]
[1732871182652,0.26196375,3572.1,3571.7,0.55]
[1732871182970,0.26196375,3572.0,3571.7,0.55]
[1732871183139,0.2619164,3571.9,3571.7,1.2842974]
[1732871183345,0.2619164,3572.2,3571.7,1.2842974]
[1732871183542,0.2619164,3572.1,3571.7,1.2842974]
[1732871183731,0.2619164,3572.0,3571.7,1.2842974]
[1732871183936,2.79932,3572.3,3571.7,1.2842974]
[1732871183937,0.2619164,3571.9,3571.7,1.2842974]
[1732871184140,0.2619164,3572.2,3571.8,0.52772514]
[1732871184368,0.2619164,3572.1,3571.7,1.2842974]
[1732871184678,0.2619164,3572.0,3571.7,1.2842974]
[1732871184839,0.2619164,3572.2,3571.7,1.2842974]
[1732871185205,0.2619164,3572.1,3571.7,1.2842974]
[1732871185345,0.2619164,3572.0,3571.7,1.2842974]
[1732871185676,0.26189325,3572.2,3571.9,0.55]
[1732871185879,0.26189325,3572.1,3571.7,0.55]
[1732871186083,0.26189325,3572.0,3571.7,0.55]
[1732871186238,2.7994,3572.2,3571.7,0.55]
[1732871186239,0.26189325,3571.9,3571.7,0.55]
[1732871186577,0.26189325,3572.1,3571.7,0.55]
[1732871186781,0.26189325,3572.0,3571.7,0.55]
[1732871186932,0.26189325,3571.9,3571.7,0.55]
[1732871187132,0.26189325,3571.8,3571.7,0.55]
[1732871187372,0.26189325,3572.0,3571.7,0.55]
[1732871187578,0.26189325,3571.9,3571.7,0.55]
[1732871187754,0.26189325,3571.8,3571.7,0.55]
[1732871187954,0.26189325,3572.0,3571.7,0.55]
[1732871188180,0.26189325,3571.9,3571.7,0.55]
[1732871188381,0.26199741,3572.0,3571.7,0.55]
[1732871188581,0.26199741,3571.9,3571.7,0.55]
[1732871188877,0.26199741,3572.0,3571.7,0.963004]
[1732871189083,2.79948,3572.1,3572.0,1.16800259]
[1732871189282,2.7994,3572.2,3572.1,0.55]
[1732871193080,2.7994,3572.2,3572.1,0.62156987]
[1732871193282,3.60349,3572.4,3572.1,0.62156987]
[1732871193460,2.79929,3572.4,3572.1,0.62156987]
[1732871194339,2.79929,3572.4,3572.1,0.55]
[1732871194541,2.79929,3572.4,3572.3,0.55]
[1732871194859,2.79929,3572.4,3572.3,0.62148415]
[1732871195059,3.56568,3572.6,3572.3,0.62148415]
[1732871195308,2.79916,3572.5,3572.3,0.62148415]
[1732871198085,2.79923,3572.4,3572.3,0.62148415]
[1732871198518,2.79923,3572.4,3572.1,0.55]
[1732871198686,2.79923,3572.4,3572.3,0.62229892]
[1732871198903,2.79923,3572.4,3572.3,0.55]
[1732871199219,2.79923,3572.4,3572.3,0.62229892]
[1732871199390,2.79916,3572.5,3572.4,0.55]
[1732871199584,3.36958126,3572.5,3572.4,0.62225605]
[1732871199913,3.36958126,3572.5,3572.0,1.37110259]
[1732871199914,3.36958126,3572.5,3572.1,0.55]
[1732871200427,3.36958126,3572.5,3572.3,0.55]
[1732871200630,3.36958126,3572.5,3572.4,0.62225605]
[1732871200828,3.36958126,3572.5,3572.4,0.55]
[1732871201134,3.63159831,3572.5,3572.1,0.55]
[1732871201331,0.26201705,3572.4,3572.1,0.55]
[1732871201535,3.36958126,3572.5,3572.3,0.55]
[1732871201836,3.36958126,3572.5,3572.0,1.37110259]
[1732871201837,3.06123251,3572.4,3572.1,0.55]
[1732871202139,2.79923,3572.4,3572.1,0.55]
[1732871206941,2.79937,3572.3,3572.1,0.55]
[1732871207532,3.36958126,3572.5,3572.1,0.55]
[1732871207742,2.79933,3572.3,3572.1,0.55]
[1732871208112,2.79933,3572.3,3572.2,0.6222781]
[1732871211725,3.59843,3572.3,3572.2,0.0722781]
[1732871211965,2.99843,3572.3,3572.2,0.0722781]
[1732871212124,2.99843,3572.3,3571.2,0.752]
[1732871212125,2.79987,3571.6,3571.2,0.752]
[1732871212541,2.79987,3571.6,3571.3,0.07259808]
[1732871212961,2.79987,3571.6,3571.2,0.752]
[1732871213122,2.79987,3571.6,3571.5,0.55]
[1732871213323,2.79987,3571.6,3571.4,0.55]
[1732871213558,2.79987,3571.6,3566.9,1.03468236]
[1732871213559,2.79987,3571.6,3571.5,0.07253587]
[1732871214061,2.80034,3571.0,3570.6,0.752]
[1732871214261,0.8314,3571.2,3570.6,0.752]
[1732871214459,0.8314,3571.2,3570.7,0.07256635]
[1732871214665,3.6316,3571.2,3570.7,0.07256635]
[1732871214862,2.80026,3571.1,3570.8,0.36252864]
[1732871215189,2.80026,3571.1,3570.7,0.07256635]
[1732871215344,2.80033,3571.0,3570.9,0.07246435]
[1732871215675,2.80033,3571.0,3570.6,0.752]
[1732871215992,2.80086,3570.4,3569.5,2.80146]
[1732871216146,2.80086,3570.4,3568.9,5.28]
[1732871216147,2.80086,3570.4,3569.6,0.8238]
[1732871216332,2.80103,3570.2,3569.7,0.362538]
[1732871216826,2.80086,3570.4,3569.7,0.362538]
[1732871217226,2.80086,3570.4,3569.8,0.55]
[1732871219168,2.80088,3570.3,3569.8,0.55]
[1732871220249,3.61445,3570.6,3569.8,0.55]
[1732871220250,2.80075,3570.5,3569.8,0.55]
[1732871220576,2.80075,3570.5,3570.0,0.55]
[1732871221648,2.80075,3570.5,3570.1,0.7926]
[1732871221845,2.80075,3570.5,3570.2,0.55]
[1732871222267,2.80057,3570.7,3570.2,0.55]
[1732871223060,2.80057,3570.7,3570.4,0.55]
[1732871223473,2.80067,3570.6,3570.5,0.07286551]
[1732871223851,3.60071,3570.9,3570.5,0.62286551]
[1732871224054,2.80053,3570.8,3570.6,0.55]
[1732871224451,2.80053,3570.8,3570.7,0.07277262]
[1732871225447,2.25025,3571.1,3570.7,0.07277262]
[1732871225647,2.25025,3571.1,3570.7,0.82977262]
[1732871225862,2.25025,3571.1,3570.7,1.24782988]
[1732871226664,5.05056,3571.1,3570.7,1.24782988]
[1732871226860,2.80049,3570.9,3570.7,0.82977262]
[1732871227062,2.80049,3570.8,3570.7,0.07277262]
[1732871227591,2.80049,3570.8,3570.7,0.62277262]
[1732871227801,2.80049,3570.8,3570.7,0.55]
[1732871227953,2.80049,3570.8,3570.4,0.55]
[1732871228302,2.80049,3570.8,3570.7,0.55]
[1732871228589,2.80026,3571.1,3570.6,0.55]
[1732871228893,0.7796,3571.4,3570.8,0.55]
[1732871229077,2.80033,3571.0,3570.8,0.55]
[1732871229287,2.80033,3571.0,3570.9,0.62284732]
[1732871230006,3.58173,3571.0,3570.9,0.55]
[1732871231558,4.219923,3571.0,3570.9,0.55]
[1732871231759,2.80104,3570.1,3569.5,0.7926]
[1732871232171,2.80104,3570.1,3569.6,0.07335791]
[1732871232789,2.80091,3570.3,3569.6,0.07335791]
[1732871233004,2.80088,3570.3,3569.6,0.07335791]
[1732871233204,2.80125,3569.9,3569.6,0.07335791]
[1732871233613,2.80125,3569.9,3569.3,0.7947]
[1732871233817,2.80125,3569.9,3569.4,0.07107637]
[1732871234364,2.80129,3569.8,3569.5,0.55]
[1732871234605,2.80129,3569.8,3569.6,0.07099052]
[1732871234770,2.80129,3569.8,3569.7,0.55]
[1732871234976,2.80129,3569.8,3569.7,0.6209476]
[1732871235765,2.80116,3570.0,3569.7,0.6209476]
[1732871236743,2.80104,3570.1,3569.7,0.6209476]
[1732871237033,2.80116,3570.0,3569.7,0.6209476]
[1732871237834,2.80104,3570.1,3569.7,0.6209476]
[1732871237835,2.8012,3569.9,3569.7,0.6209476]
[1732871238582,2.80127,3569.8,3569.7,0.6209476]
[1732871239126,2.80127,3569.8,3569.4,0.55]
[1732871239333,2.80113,3570.0,3569.4,0.96465]
[1732871239527,2.80113,3570.0,3569.6,0.55]
[1732871239902,2.8012,3569.9,3569.8,0.55]
[1732871240292,2.8012,3569.9,3569.8,0.62114789]
[1732871240494,2.8012,3569.9,3569.8,0.55]
[1732871243098,2.8012,3569.9,3569.8,0.62116678]
[1732871246313,2.80106,3570.1,3569.8,0.62116678]
[1732871246753,2.80113,3570.0,3569.8,0.62116678]
[1732871248154,2.80096,3570.2,3569.8,0.62116678]
[1732871248363,2.80119,3569.9,3569.8,0.62116678]
[1732871249816,3.58729,3569.9,3569.8,0.62116678]
[1732871250018,3.58729,3569.9,3569.8,0.55]
[1732871253559,2.80119,3569.9,3569.8,0.55]
[1732871253975,2.80119,3569.9,3569.8,0.62149908]
[1732871255372,0.7647,3570.2,3569.8,0.62149908]
[1732871255373,2.80114,3570.0,3569.8,0.62149908]
[1732871255745,2.80119,3569.9,3569.8,0.62149908]
[1732871256173,2.80109,3570.1,3569.8,0.55]
[1732871256579,2.80109,3570.1,3569.9,0.07146509]
[1732871256867,2.80109,3570.1,3570.0,0.55]
[1732871257067,2.80109,3570.1,3570.0,0.62142217]
[1732871259454,2.80109,3570.1,3569.7,0.55]
[1732871259656,2.80124,3569.9,3569.8,0.62150802]
[1732871261784,2.80124,3569.9,3569.8,0.55]
[1732871262584,2.80166,3569.4,3568.7,0.7963]
[1732871262781,2.80166,3569.4,3568.7,3.59842]
[1732871262937,2.80166,3569.4,3568.8,0.06952407]
[1732871263784,2.80166,3569.4,3568.9,0.55]
[1732871263939,2.80166,3569.4,3569.1,0.55]
[1732871264342,2.80166,3569.4,3569.3,0.55]
[1732871264655,2.80166,3569.4,3569.3,0.06930934]
[1732871264858,2.80166,3569.4,3569.3,0.55]
[1732871265177,2.80144,3569.6,3569.4,0.55]
[1732871265542,2.80144,3569.6,3569.5,0.61922347]
[1732871265947,2.80144,3569.6,3569.5,0.55]
[1732871266252,2.80144,3569.6,3569.5,0.6192486]
[1732871267613,2.80144,3569.6,3569.5,0.55]
[1732871267906,2.80144,3569.6,3569.5,0.61922347]
[1732871268510,2.80144,3569.6,3569.5,0.55]
[1732871269384,6.56184,3569.6,3569.5,0.55]
[1732871282827,3.7714,3569.3,3568.0,3.60687]
[1732871283013,2.80216,3568.7,3568.0,3.60687]
[1732871283530,2.80216,3568.7,3568.1,0.07014343]
[1732871284128,2.80216,3568.7,3568.2,0.55]
[1732871284313,2.80216,3568.7,3568.4,0.55]
[1732871284707,2.80216,3568.7,3568.6,0.55]
[1732871285229,2.80216,3568.7,3568.6,0.61992862]
[1732871287134,3.55656,3568.7,3568.6,0.61992862]
[1732871287433,3.55656,3568.7,3568.6,0.55]
[1732871289186,3.57326,3568.7,3568.6,0.55]
[1732871289406,2.80286,3567.8,3567.2,0.7911]
[1732871289589,2.80271,3568.0,3567.2,2.80325]
[1732871289820,2.80271,3568.0,3567.4,0.8097]
[1732871290535,2.80253,3568.3,3567.5,0.07040666]
[1732871290735,2.80267,3568.1,3567.6,0.55]
[1732871291088,2.80267,3568.1,3567.8,0.55]
[1732871291325,2.80267,3568.1,3567.9,0.07023478]
[1732871291802,2.80267,3568.1,3568.0,0.55]
[1732871292307,2.80267,3568.1,3568.0,0.62019181]
[1732871294047,2.80267,3568.1,3568.0,0.55]
[1732871294415,2.80267,3568.1,3568.0,0.62021697]
[1732871297551,2.80267,3568.1,3568.0,0.55]
[1732871298258,2.80317,3567.4,3566.9,0.8331]
[1732871298462,2.80303,3567.6,3567.0,0.07063758]
[1732871298611,2.80309,3567.5,3567.0,0.07063758]
[1732871300662,2.80309,3567.5,3567.1,0.55]
[1732871300826,0.799,3567.5,3567.2,0.07094449]
[1732871301155,2.80314,3567.5,3566.9,0.8331]
[1732871301458,2.80316,3567.4,3566.9,1.477145]
[1732871301652,2.80316,3567.4,3567.0,0.07106347]
[1732871302455,2.80325,3567.3,3567.1,0.55]
[1732871302613,2.80325,3567.3,3567.2,0.07095233]
[1732871302814,2.80325,3567.3,3567.2,0.62095233]
[1732871303852,2.80325,3567.3,3567.2,0.55]
[1732871304557,2.80325,3567.3,3567.2,0.62097119]
[1732871306656,0.7519,3567.2,3565.4,2.80473]
[1732871306861,0.7519,3567.2,3564.5,0.3802]
[1732871306862,2.80428,3566.0,3565.5,0.8302]
[1732871307152,2.80397,3566.4,3565.6,3.63476]
[1732871307367,2.80397,3566.4,3565.7,0.36994831]
[1732871307513,2.80397,3566.4,3565.7,0.06215638]
[1732871308329,0.7519,3566.7,3565.7,0.06215638]
[1732871308330,2.80429,3566.0,3565.7,0.06215638]
[1732871308558,2.80418,3566.1,3565.7,0.06215638]
[1732871309753,2.80402,3566.3,3565.8,0.55]
[1732871310059,2.80402,3566.3,3566.0,0.55]
[1732871310353,2.80402,3566.3,3566.2,0.55]
[1732871310511,5.80402,3566.3,3566.2,0.55]
[1732871312860,2.80449,3565.8,3565.6,0.8302]
[1732871313061,2.80449,3565.8,3565.7,0.06196415]
[1732871313062,2.80441,3565.8,3565.7,0.06196415]
[1732871313375,2.80441,3565.8,3565.0,0.7553]
[1732871313521,2.80468,3565.5,3565.0,0.7553]
[1732871313719,2.80468,3565.5,3565.1,0.06222229]
[1732871314250,3.62129,3566.1,3565.1,0.06222229]
[1732871314455,2.80476,3565.4,3565.1,0.06222229]
[1732871315806,2.80458,3565.6,3565.2,0.55]
[1732871315927,2.80479,3565.4,3565.2,0.55]
[1732871316125,2.80458,3565.6,3565.4,0.55]
[1732871316421,2.80465,3565.5,3565.4,0.55]
[1732871316627,2.80476,3565.4,3565.1,0.55]
[1732871319059,2.80481,3565.3,3565.0,0.7553]
[1732871319258,0.362129,3566.0,3565.0,0.7553]
[1732871319259,2.80465,3565.5,3565.0,0.7553]
[1732871319593,2.80468,3565.5,3565.0,0.7553]
[1732871320287,2.80468,3565.5,3565.1,0.55]
[1732871320489,2.80473,3565.4,3565.1,0.55]
[1732871320846,2.8045,3565.7,3565.1,0.55]
[1732871321049,2.80461,3565.6,3565.1,0.55]
[1732871321458,2.80465,3565.5,3565.1,0.55]
[1732871323153,2.80462,3565.6,3565.1,0.55]
[1732871323377,2.8045,3565.7,3565.1,0.55]
[1732871323591,2.80466,3565.5,3565.1,0.55]
[1732871324290,2.80451,3565.7,3565.1,0.55]
[1732871325123,2.80435,3565.9,3565.1,3.35495]
[1732871325255,2.80404,3566.3,3565.6,3.57741]
[1732871325449,2.80404,3566.3,3565.7,0.55]
[1732871327954,2.8041,3566.2,3565.7,0.55]
[1732871328210,2.8041,3566.2,3565.9,0.55]
[1732871328555,2.8041,3566.2,3566.1,0.55]
[1732871329059,2.8041,3566.2,3566.1,0.61282344]
[1732871331900,2.80404,3566.3,3566.1,0.61282344]
[1732871333175,2.80388,3566.5,3566.1,0.61282344]
[1732871333372,3.160318,3566.5,3566.1,0.61282344]
[1732871333974,2.80409,3566.3,3566.1,0.61282344]
[1732871337475,2.8041,3566.2,3566.1,0.61282344]
[1732871338425,2.8041,3566.2,3566.1,0.55]
[1732871338623,2.8041,3566.2,3566.1,0.6126212]
[1732871341531,3.1823739,3566.2,3566.1,0.0626212]
[1732871341691,3.9750739,3566.2,3565.2,3.55837]
[1732871342032,2.8044,3565.9,3565.3,0.06281925]
[1732871342263,2.80403,3566.3,3565.5,2.80463]
[1732871342408,2.80419,3566.1,3565.5,2.80463]
[1732871342609,2.80419,3566.1,3565.6,0.06297858]
[1732871342907,2.80419,3566.1,3565.7,0.06287146]
[1732871343125,2.80419,3566.1,3565.4,0.7535]
[1732871343126,2.80419,3566.1,3565.5,0.55]
[1732871343336,2.80419,3566.1,3565.7,0.55]
[1732871343539,2.80419,3566.1,3565.5,0.55]
[1732871343540,2.80419,3566.1,3565.8,0.06282844]
[1732871343722,2.80419,3566.1,3565.5,0.55]
[1732871343929,2.80419,3566.1,3565.9,0.55]
[1732871344248,2.80419,3566.1,3566.0,0.61253046]
[1732871344610,2.80419,3566.1,3566.0,0.55]
[1732871345650,3.62949,3566.1,3566.0,0.55]
[1732871348963,2.80419,3566.1,3566.0,1.3543]
[1732871349314,3.756,3566.6,3566.0,1.3543]
[1732871349315,2.8041,3566.2,3566.1,0.55]
[1732871349509,2.80395,3566.4,3566.1,0.6122811]
[1732871349720,0.756,3566.9,3566.1,0.6122811]
[1732871349972,2.80375,3566.7,3566.1,0.9033248]
[1732871353221,3.55955,3566.9,3566.1,0.6122811]
[1732871353462,2.80379,3566.6,3566.1,0.6122811]
[1732871354952,0.26271825,3566.5,3566.1,0.6122811]
[1732871355171,0.26271825,3566.4,3566.1,0.6122811]
[1732871355372,0.26271825,3566.3,3566.1,0.6122811]
[1732871355544,2.80379,3566.6,3566.1,0.6122811]
[1732871355871,0.26274836,3566.5,3566.1,0.6122811]
[1732871356027,0.26274836,3566.4,3566.1,0.6122811]
[1732871356227,0.26274836,3566.3,3566.1,0.6122811]
[1732871356472,2.80379,3566.6,3566.1,0.6122811]
[1732871356642,0.26273443,3566.5,3566.1,0.6122811]
[1732871356844,0.26273443,3566.4,3566.1,0.6122811]
[1732871357174,2.80363,3566.8,3566.1,0.6122811]
[1732871357492,3.06643017,3566.7,3566.1,0.6122811]
[1732871357635,0.26272017,3566.6,3566.1,0.6122811]
[1732871357989,2.80371,3566.7,3566.1,0.6122811]
[1732871357990,0.26272017,3566.5,3566.1,0.6122811]
[1732871358195,0.26272017,3566.4,3566.1,0.6122811]
[1732871358348,2.8038,3566.6,3566.1,0.6122811]
[1732871358648,2.80397,3566.4,3566.1,0.6122811]
[1732871358849,0.26271201,3566.3,3566.1,0.6122811]
[1732871359049,2.8041,3566.2,3566.1,0.0622811]
[1732871359250,3.06683069,3566.2,3566.1,0.0622811]
[1732871359435,2.80429,3566.0,3565.6,0.7941]
[1732871359841,0.26274636,3565.9,3565.6,0.7941]
[1732871360155,2.80419,3566.1,3565.6,0.7941]
[1732871360381,3.4249738,3566.0,3565.7,0.55]
[1732871360536,2.80455,3565.7,3565.3,0.7795]
[1732871360742,0.2627348,3565.6,3565.3,0.7795]
[1732871360954,0.26276193,3565.5,3565.3,0.7795]
[1732871361157,0.26271301,3565.6,3565.3,0.7795]
[1732871361342,2.80435,3565.9,3565.3,0.7795]
[1732871361685,0.26269709,3565.8,3565.3,0.7795]
[1732871361866,0.26269709,3565.7,3565.4,0.55]
[1732871362056,0.26269709,3565.6,3565.4,0.55]
[1732871362269,0.26269709,3565.8,3565.4,0.55]
[1732871362551,0.26269709,3565.7,3565.4,0.55]
[1732871362752,0.26269709,3565.6,3565.4,0.55]
[1732871362960,0.357969,3566.0,3565.4,0.55]
[1732871362961,0.26269709,3565.9,3565.4,0.55]
[1732871363173,0.26269709,3565.8,3565.4,0.55]
[1732871363342,0.26269709,3565.7,3565.4,0.55]
[1732871363543,3.0,3566.1,3565.4,0.55]
[1732871363544,2.80442,3565.8,3565.4,0.55]
[1732871363784,0.26263325,3565.7,3565.4,0.55]
[1732871363983,2.80442,3565.8,3565.4,0.55]
[1732871364286,0.26261289,3565.7,3565.4,0.55]
[1732871364441,2.80442,3565.8,3565.4,0.55]
[1732871364641,0.26260856,3565.7,3565.4,0.55]
[1732871364843,2.80442,3565.8,3565.4,0.55]
[1732871365081,0.26260855,3565.7,3565.4,0.55]
[1732871365446,2.80442,3565.8,3565.4,0.55]
[1732871365642,0.26258613,3565.7,3565.4,0.55]
[1732871365842,0.26258613,3566.0,3565.4,3.35472]
[1732871366163,0.26258613,3565.9,3565.4,3.35472]
[1732871366347,0.26258613,3565.8,3565.4,3.35472]
[1732871366548,0.26255744,3566.0,3565.4,3.35472]
[1732871366778,0.26255744,3565.9,3565.4,3.35472]
[1732871366971,2.80419,3566.1,3565.4,3.35472]
[1732871367292,0.2625562,3566.0,3565.4,3.35472]
[1732871367463,0.2625562,3565.9,3565.4,3.35472]
[1732871367647,2.80419,3566.1,3565.4,3.35472]
[1732871367984,0.2625555,3566.0,3565.4,3.35472]
[1732871368165,2.80419,3566.1,3565.4,3.35472]
[1732871368166,0.26255601,3565.9,3565.4,3.35472]
[1732871368406,0.26255601,3566.0,3565.4,3.35472]
[1732871368574,0.26255601,3565.9,3565.6,0.55]
[1732871368739,3.06667601,3566.2,3565.6,0.55]
[1732871368945,0.26255601,3566.1,3565.6,0.55]
[1732871369145,0.26255601,3566.0,3565.6,0.55]
[1732871369462,0.26254269,3565.9,3565.6,0.55]
[1732871369772,0.26254269,3566.1,3565.6,0.55]
[1732871369974,0.26254269,3566.1,3565.8,0.55]
[1732871370172,2.80387,3566.5,3565.8,0.55]
[1732871370173,0.26254269,3566.4,3565.8,3.35439]
[1732871370494,0.26254269,3566.3,3565.8,3.35439]
[1732871370691,0.26254269,3566.2,3565.8,3.35439]
[1732871370905,2.80396,3566.4,3565.8,3.35439]
[1732871371046,0.26253458,3566.3,3565.8,3.35439]
[1732871371388,0.26253458,3566.2,3565.8,3.35439]
[1732871371589,2.80396,3566.4,3565.8,3.35439]
[1732871371762,0.26253489,3566.3,3565.8,0.55]
[1732871371963,0.26253489,3566.2,3565.8,0.55]
[1732871372162,0.26253216,3566.3,3565.8,0.55]
[1732871372352,2.80396,3566.4,3565.8,0.55]
[1732871372353,0.26253216,3566.2,3565.8,0.55]
[1732871372554,2.80396,3566.4,3565.8,0.55]
[1732871372900,3.58819,3566.6,3565.8,0.55]
[1732871372901,3.06655449,3566.3,3565.8,0.55]
[1732871373053,0.26253449,3566.2,3566.0,0.55]
[1732871373249,2.80402,3566.3,3566.0,0.55]
[1732871373250,0.26253449,3566.1,3566.0,0.55]
[1732871373450,0.26253449,3566.2,3566.0,0.55]
[1732871373685,2.80402,3566.3,3566.0,0.6116736]
[1732871373896,0.26253544,3566.2,3566.0,0.6116736]
[1732871374067,2.80402,3566.3,3566.0,0.6116736]
[1732871374398,0.26253346,3566.2,3566.0,0.6116736]
[1732871374689,2.80402,3566.3,3566.0,0.6116736]
[1732871374895,0.26253347,3566.2,3566.0,0.6116736]
[1732871375203,2.80402,3566.3,3566.0,0.6116736]
[1732871375402,0.26253614,3566.2,3566.0,0.6116736]
[1732871375551,2.80402,3566.3,3566.0,0.6116736]
[1732871375880,0.26253396,3566.2,3566.0,0.6116736]
[1732871376121,5.80389,3566.5,3566.0,0.6116736]
[1732871376324,0.26254028,3566.4,3566.0,0.6116736]
[1732871376507,0.26254028,3566.3,3566.0,0.6116736]
[1732871376710,0.26254028,3566.2,3566.0,0.6116736]
[1732871377039,5.80389,3566.5,3566.0,0.6116736]
[1732871377336,0.26255097,3566.4,3566.0,0.6116736]
[1732871377539,0.26255097,3566.3,3566.0,0.6116736]
[1732871377739,0.26255097,3566.2,3566.0,0.6116736]
[1732871377911,5.80389,3566.5,3566.0,0.6116736]
[1732871378234,0.26254951,3566.4,3566.0,0.6116736]
[1732871378438,0.26254951,3566.3,3566.0,0.6116736]
[1732871378589,3.58819,3566.6,3566.0,0.6116736]
[1732871378794,0.2625497,3566.5,3566.0,0.6116736]
[1732871379119,0.2625497,3566.4,3566.0,0.6116736]
[1732871379434,0.2625497,3566.3,3566.0,0.6116736]
[1732871379614,2.80379,3566.6,3566.1,0.7802]
[1732871379944,3.58534,3566.8,3566.2,0.55]
[1732871380097,0.262547,3566.5,3566.2,0.61176668]
[1732871380496,2.80372,3566.7,3566.2,0.61176668]
[1732871381357,0.7817,3566.8,3566.2,0.61176668]
[1732871381639,0.26255073,3566.4,3566.2,3.41585668]
[1732871382191,0.26255073,3566.4,3566.2,0.61176668]
[1732871382396,0.26255073,3566.4,3566.3,4.43807795]
[1732871382835,0.26255073,3566.4,3566.3,4.49987477]
[1732871383199,0.26255073,3566.7,3566.4,3.35387]
[1732871383533,0.26255073,3566.7,3566.6,3.35379]
[1732871383695,0.26255073,3567.0,3566.6,4.17809]
[1732871383891,0.26255073,3567.0,3566.8,2.8036]
[1732871384195,0.26255073,3567.0,3566.9,0.61203521]
[1732871385401,2.80303,3567.6,3566.9,0.61203521]
[1732871385599,3.0,3567.5,3566.9,0.61203521]
[1732871385796,3.26254244,3567.5,3566.9,0.61203521]
[1732871386035,0.26254244,3567.4,3566.9,0.61203521]
[1732871386201,0.26254244,3567.3,3566.9,0.61203521]
[1732871386538,0.26254244,3567.2,3566.9,0.61203521]
[1732871386745,0.26254244,3567.1,3566.9,0.61203521]
[1732871387033,0.26254244,3567.0,3566.9,0.61203521]
[1732871389101,0.26254244,3567.4,3566.9,0.61203521]
[1732871389430,2.80309,3567.5,3566.9,0.61203521]
[1732871389431,0.26254244,3567.3,3566.9,0.61203521]
[1732871389743,0.26254244,3567.2,3566.9,0.61203521]
[1732871389948,0.26254244,3567.1,3566.9,0.61203521]
[1732871390098,2.80309,3567.5,3566.9,0.61203521]
[1732871390099,0.26254244,3567.0,3566.9,0.61203521]
[1732871390296,0.26254244,3567.4,3566.9,0.61203521]
[1732871390539,0.26254244,3567.3,3566.9,0.61203521]
[1732871390842,0.26254244,3567.2,3566.9,0.61203521]
[1732871391087,0.26254244,3567.1,3566.9,0.61203521]
[1732871391457,0.26254244,3567.3,3566.9,0.61203521]
[1732871391783,0.26254244,3567.2,3566.9,0.61203521]
[1732871391986,0.26254244,3567.1,3566.9,0.61203521]
[1732871392198,0.26254244,3567.3,3566.9,0.61203521]
[1732871392345,0.26254244,3567.2,3566.9,0.61203521]
[1732871392545,0.26254244,3567.1,3566.9,0.61203521]
[1732871392769,0.26254244,3567.3,3566.9,0.61203521]
[1732871392968,0.26254244,3567.2,3566.9,0.61203521]
[1732871393146,0.26254244,3567.1,3566.9,0.61203521]
[1732871393349,0.26254244,3567.0,3566.9,0.61203521]
[1732871393642,0.7764,3567.2,3566.9,0.61203521]
[1732871393643,0.26254244,3567.1,3566.9,0.61203521]
[1732871393845,0.7764,3567.2,3566.9,0.61203521]
[1732871393846,0.26254244,3567.0,3566.9,0.61203521]
[1732871394059,0.26254244,3567.1,3566.9,0.61203521]
[1732871394281,0.26254244,3567.1,3566.7,0.55]
[1732871394486,0.26254244,3567.1,3566.7,3.35368]
[1732871394681,0.26254244,3567.1,3566.9,0.55]